Cogmind - Beta 15 @@@ ROGUE MODE // 2025.06.29 @ 04:59:38 Player: Duduxx Result: Destroyed by H-77 Assassin with Coil Gun Performance ------------- Evolutions (7) 3500 Regions Visited (19) 3800 Robots Destroyed (120) 600 Value Destroyed (4273) 4273 Prototype IDs (35) 700 Alien Tech Used (0) 0 Bonus (994) 994 TOTAL SCORE: 13867 Bonus ------- Follower Combat Kills 194 Entered DSFs 500 Aligned with FarCom 300 Cogmind --------- Core Integrity 0/1300 Matter 272/300 Energy 47/100 System Corruption 42% Temperature Cool (0) Movement Core (50) Location -3/Research Parts ------- > --- POWER (3) -------- (None) > --- PROPULSION (8) --- (None) > --- UTILITY (8) ------ Advanced Target Analyzer Advanced Target Analyzer Graphene Brace > --- WEAPON (2) ------- (None) > --- INVENTORY (5) ---- Light Antimatter Reactor Advanced Weapon Cycler Advanced Force Field Field Lobotomy Kit (1) Peak State ------------ > --- POWER ------------ Light Nuclear Core Reinforced Fission Core Micro Antimatter Reactor > --- PROPULSION ------- Impulse Thruster Array Impulse Thruster Array Impulse Thruster Array Impulse Thruster Array > --- UTILITY ---------- Advanced Cooling System Advanced Cooling System Medium Storage Unit Advanced Target Analyzer Improved Weapon Cycler Graphene Brace Improved Force Field Authchip [Propulsion] > --- WEAPON ----------- Quantum Rifle Quantum Rifle > --- INVENTORY -------- F-cell Engine Impulse Thruster Array Advanced Cooling System Quantum Rifle Heavy Disruptor Cannon Heavy Shock Bomb Launcher Field Lobotomy Kit Spear [Rating: 148] Favorites ----------- Power Light Nuclear Core Engine Light Angular Momentum Engine Power Core Light Nuclear Core Reactor Light Antimatter Reactor Propulsion Aluminum Leg Treads Light Treads Leg Aluminum Leg Wheel Compact Wheel Hover Unit Combat Gravmag System Flight Unit Xenon Bombardment Thruster Utility Advanced Targeting Computer Device Advanced Cooling System Storage Large Storage Unit Processor Advanced Targeting Computer Hackware Hacking Suite Protection Improved Propulsion Shielding Weapon Gatling Laser Energy Gun Gatling Laser Energy Cannon Heavy Particle Cannon Ballistic Gun Light Assault Rifle Ballistic Cannon Light Cannon Launcher Heavy Shock Bomb Launcher Special Weapon Field Lobotomy Kit Piercing Weapon Spear Build | -11 -10 -10 -10 -9 -8 -7 -7 -7 -7 -7 -6 -6 -6 -5 -5 -5 -4 -4 -3 ------- Run | Yrd Mat Min Exi Min Mat Fac Was Fac Low Low Fac Was Fac Fac Was Fac Fac DSF Res Slots Evolved 14 | . . . . . 4 2 . . . . 2 . . 2 . . 2 . 2 Power 2 | . . . . . . 1 . . . . . . . . . . . . 1 Propulsion 6 | . . . . . 1 1 . . . . 1 . . 1 . . 1 . 1 Utility 6 | . . . . . 3 . . . . . 1 . . 1 . . 1 . . Weapon . | . . . . . . . . . . . . . . . . . . . . Parts Attached 174 | 7 7 6 . . 26 19 . 7 3 5 3 1 7 9 1 4 7 37 25 Power 27 | 1 . 2 . . 3 4 . . 2 1 . . 1 2 . 1 1 5 4 Engine 10 | 1 . 1 . . 1 2 . . . . . . 1 1 . 1 . . 2 Core 14 | . . 1 . . 2 2 . . 2 1 . . . 1 . . . 4 1 Reactor 3 | . . . . . . . . . . . . . . . . . 1 1 1 Propulsion 56 | 2 2 3 . . 9 9 . . . 1 2 1 4 3 . 1 4 9 6 Treads 3 | 2 . . . . . 1 . . . . . . . . . . . . . Leg 17 | . . 2 . . 8 1 . . . . . . . . . . 2 4 . Wheel 6 | . 2 1 . . 1 . . . . . . . . . . . 1 . 1 Hover 1 | . . . . . . . . . . . . . . . . . 1 . . Flight 29 | . . . . . . 7 . . . 1 2 1 4 3 . 1 . 5 5 Utility 56 | 1 3 1 . . 9 3 . 5 . 1 1 . 1 3 1 . 2 14 11 Device 33 | . 2 1 . . 2 1 . 3 . . . . 1 2 . . 2 10 9 Storage 6 | 1 1 . . . 1 2 . 1 . . . . . . . . . . . Processor 9 | . . . . . 6 . . . . 1 . . . . . . . . 2 Hackware 5 | . . . . . . . . 1 . . 1 . . . 1 . . 2 . Protection 3 | . . . . . . . . . . . . . . 1 . . . 2 . Artifact . | . . . . . . . . . . . . . . . . . . . . Weapon 35 | 3 2 . . . 5 3 . 2 1 2 . . 1 1 . 2 . 9 4 Energy Gun 19 | 1 . . . . 5 2 . . . . . . 1 1 . 1 . 7 1 Energy Cannon 4 | . 1 . . . . 1 . . . 1 . . . . . . . . 1 Ballistic Gun 5 | 2 . . . . . . . 1 . . . . . . . . . 2 . Ballistic Cannon 2 | . 1 . . . . . . 1 . . . . . . . . . . . Launcher 3 | . . . . . . . . . . 1 . . . . . 1 . . 1 Special Weapon 1 | . . . . . . . . . 1 . . . . . . . . . . Impact Weapon . | . . . . . . . . . . . . . . . . . . . . Slashing Weapon . | . . . . . . . . . . . . . . . . . . . . Piercing Weapon 1 | . . . . . . . . . . . . . . . . . . . 1 Special Melee Weapon . | . . . . . . . . . . . . . . . . . . . . Unidentified Prototypes 8 | . . . . . . 3 . . . . 1 . 2 1 . . . 1 . Corrupted Parts 4 | . . . . . . . . . . . . . . . . . . 2 2 System Corruption 26 | . . . . . . . . . . . . . . . . . . 6 20 Parts Lost 95 | . 3 2 . . 12 2 . . 1 6 . . . 4 . 16 . 20 29 Power 20 | . . 1 . . 2 1 . . . 3 . . . . . 2 . 4 7 Propulsion 31 | . 1 1 . . 5 . . . . . . . . 3 . 7 . 6 8 Utility 24 | . 1 . . . 2 . . . . 1 . . . 1 . 4 . 7 8 Weapon 20 | . 1 . . . 3 1 . . 1 2 . . . . . 3 . 3 6 Highest Loss Streak 17 | . 2 1 . . 3 1 . . 1 3 . . . 4 . 11 . 6 17 To Critical Strikes 1 | . . . . . . . . . . . . . . . . 1 . . . Average Backups 9 | 1 5 9 10 11 11 12 8 7 9 9 7 9 10 7 8 7 7 7 6 Power 1 | . 1 . 1 1 1 2 1 1 2 1 1 . 1 . . . 1 1 . Propulsion 2 | 1 1 . 1 1 2 4 1 1 3 3 3 4 4 1 1 1 1 1 1 Utility 2 | . 1 6 6 6 3 2 2 1 2 1 1 1 2 2 3 3 2 1 . Weapon 2 | . 1 2 2 2 3 2 3 2 1 1 1 1 1 1 3 2 1 1 2 Tool/Special . | . . . . . . . . . . . . . . . . . . . . Unused Backups 12 | . . 1 . . 5 2 . 2 . . . . 1 . . . . . 1 Power 1 | . . . . . . . . . . . . . . . . . . . 1 Propulsion 1 | . . . . . . . . . . . . . 1 . . . . . . Utility 6 | . . 1 . . 3 1 . 1 . . . . . . . . . . . Weapon 4 | . . . . . 2 1 . 1 . . . . . . . . . . . Tool/Special . | . . . . . . . . . . . . . . . . . . . . Average Slot Usage (%) 89 | . 93 95 100 100 99 91 100 98 96 83 78 86 86 90 94 82 37 63 71 Engine 5 | . 14 7 . . 2 11 7 7 3 . . . 6 3 5 4 . . 2 Core 4 | . . 7 14 14 6 . 7 6 8 9 6 6 . 3 5 2 . 5 8 Treads 1 | . 15 . . . . . . . . . . . . . . . . . . Leg 10 | . . 6 . . 24 22 . . . . . . . . . . 5 8 . Wheel 3 | . 9 17 28 28 2 . . . . . . . . . . . 3 . . Flight 9 | . . . . . . 1 30 30 30 30 31 33 33 34 35 26 . 8 17 Device 11 | . 11 14 14 14 12 7 15 14 15 10 6 6 6 7 11 10 4 16 24 Storage 7 | . 14 14 14 14 9 6 7 7 7 7 6 6 6 5 5 5 5 5 2 Processor 12 | . . . . . 23 22 15 14 7 10 13 13 13 11 7 5 5 . 3 Hackware 2 | . . . . . . . . . 7 7 6 13 13 11 15 16 5 1 2 Energy Gun 7 | . . . . . 16 8 15 12 15 3 . . . 4 5 3 . 6 5 Energy Cannon 4 | . 8 14 14 14 . 5 . . . . 5 6 6 2 . 2 2 . . Ballistic Gun 3 | . 15 14 14 14 . . . . . . . . . . . . . 1 . Peak Build Rating 148 | 6 8 12 13 13 39 46 44 46 50 46 46 53 59 70 70 70 54 129 148 Average Rating 44 | 4 6 10 12 13 34 36 44 45 45 38 42 49 53 64 69 60 33 81 129 On Entrance 38 | . 6 8 12 13 13 35 44 44 43 47 35 46 50 55 67 70 14 54 119 Naked Turns . | . . . . . . . . . . . . . . . . . . . . Heaviest Build 65 | 13 30 30 30 30 38 45 26 30 31 26 23 26 30 41 41 41 42 54 65 Greatest Support 91 | 40 40 26 26 26 60 50 29 29 29 29 25 27 31 43 43 43 40 91 64 Greatest Overweight (x) 2 | . 1 2 1 1 2 2 . 2 1 1 . . . . . 1 1 1 1 Average Overweight (x) . | . . 1 1 1 . . . . . . . . . . . . . . . Largest Inventory Capacity 15 | 8 15 15 15 15 15 15 8 10 10 10 10 10 10 10 10 10 10 10 10 Average Capacity 12 | 6 10 15 15 15 15 14 8 8 10 10 10 10 10 10 10 9 8 10 8 Most Carried 15 | 3 9 11 11 12 15 15 8 10 10 10 10 10 10 9 8 9 8 10 10 Average Carried 9 | 1 5 9 10 11 11 12 8 7 9 9 7 9 9 7 8 7 7 8 7 Final Capacity 15 | 8 15 15 15 15 15 8 8 10 10 10 10 10 10 10 10 8 10 10 5 Final Carried 14 | 3 9 10 11 12 14 8 8 10 10 9 8 10 10 8 8 8 6 10 4 Class Distribution -------------------- 42% | Mutant 32% | Scavenger-Mutant 13% | Hacker-Sprinter 9% | Sprinter Dominant Class ---------------- Mutant | -10/Materials Mutant | -10/Mines Mutant | -10/Exiles Mutant | -9/Mines Mutant | -8/Materials Scavenger-Mutant | -7/Factory Sprinter | -7/Waste Sprinter | -7/Factory Sprinter | -7/Lower Caves Sprinter | -7/Lower Caves Sprinter | -6/Factory Hacker-Sprinter | -6/Waste Hacker-Sprinter | -6/Factory Hacker-Sprinter | -5/Factory Hacker-Sprinter | -5/Waste Hacker-Sprinter | -5/Factory Mutant | -4/Factory Scavenger-Mutant | -4/DSF Scavenger-Mutant | -3/Research Resources | -11 -10 -10 -10 -9 -8 -7 -7 -7 -7 -7 -6 -6 -6 -5 -5 -5 -4 -4 -3 ----------- Run | Yrd Mat Min Exi Min Mat Fac Was Fac Low Low Fac Was Fac Fac Was Fac Fac DSF Res Matter Collected 2902 | 133 347 112 . 101 252 245 . 47 289 170 20 . 140 190 . 97 . 509 250 Remotely . | . . . . . . . . . . . . . . . . . . . . Salvage Created 4654 | . 398 200 . 92 1152 575 . 47 68 138 20 . 130 381 . 334 . 774 345 Parts 203 | . 18 14 . 1 51 25 . 5 2 9 1 . 7 19 . 9 . 20 22 Haulers Intercepted 6 | . . . . . 4 1 . . . . . . . 1 . . . . . Recyclers Shooed 2 | . . 1 . . 1 . . . . . . . . . . . . . . Parts Field Recycled . | . . . . . . . . . . . . . . . . . . . . Retrieved Matter . | . . . . . . . . . . . . . . . . . . . . Parts Self-Destructed 9 | . . . . . . . . . 7 2 . . . . . . . . . Prevented 1 | . . . . . . . . . 1 . . . . . . . . . . Kills | -11 -10 -10 -10 -9 -8 -7 -7 -7 -7 -7 -6 -6 -6 -5 -5 -5 -4 -4 -3 ------- Run | Yrd Mat Min Exi Min Mat Fac Was Fac Low Low Fac Was Fac Fac Was Fac Fac DSF Res Combat Hostiles Destroyed 85 | . 10 4 . 2 21 6 . . 3 7 . . 1 9 . 6 . 10 6 Guns 44 | . 2 . . 1 19 2 . . 3 1 . . . 3 . 1 . 7 5 Cannons 28 | . 8 4 . 1 . 4 . . . 1 . . 1 6 . 2 . 1 . AOE 8 | . . . . . . . . . . 5 . . . . . 2 . . 1 Classes Destroyed 16 | . 4 1 . . 7 2 . . . 1 . . . . . 1 . . . Worker 3 | . 2 . . . . 1 . . . . . . . . . . . . . Builder 4 | . . . . . 2 1 . . . . . . 1 . . . . . . Tunneler 1 | . . 1 . . . . . . . . . . . . . . . . . Hauler 6 | . . . . . 4 1 . . . . . . . 1 . . . . . Recycler 3 | . . . . . . 3 . . . . . . . . . . . . . Operator 7 | . 1 . . . 1 . . 1 . . 1 . 2 1 . . . . . Watcher 11 | . 2 . . . 2 3 . 1 . . . . 1 1 . 1 . . . Swarmer 26 | . . . . . 5 . . . 3 4 . . . 9 . 1 . 2 2 Grunt 35 | . 10 4 . 2 11 . . . . . . . . . . 4 . 4 . Duelist 1 | . . . . . . . . . . . . . . . . 1 . . . Sentry 4 | . . . . . 2 1 . . . 1 . . . . . . . . . Specialist 5 | . . . . . 1 . . . . . . . . . . . . 4 . Hunter 2 | . . . . . 1 1 . . . . . . . . . . . . . Programmer 9 | . . . . . . 4 . . . . . . 1 . . . . . 4 Heavy 1 | . . . . . 1 . . . . . . . . . . . . . . Packrat 1 | . . . . . . . . . . 1 . . . . . . . . . Thief 2 | . . . . . . . . . . 2 . . . . . . . . . Best Kill Streak 9 | . 3 2 . 2 4 2 . 1 3 4 1 . 2 9 . 2 . 3 2 Combat Bots Only 9 | . 2 2 . 2 4 1 . . 3 4 . . 1 9 . 2 . 3 2 Max Kills in Single Turn 3 | . 3 1 . 1 1 2 . 1 1 3 1 . 1 2 . 1 . 2 1 Gunslinging . | . . . . . . . . . . . . . . . . . . . . Exploded 3 | . . . . . . . . . . 3 . . . . . 1 . . 1 Melee . | . . . . . . . . . . . . . . . . . . . . Uniques/NPCs Destroyed . | . . . . . . . . . . . . . . . . . . . . Combat | -11 -10 -10 -10 -9 -8 -7 -7 -7 -7 -7 -6 -6 -6 -5 -5 -5 -4 -4 -3 -------- Run | Yrd Mat Min Exi Min Mat Fac Was Fac Low Low Fac Was Fac Fac Was Fac Fac DSF Res Hostile Shots Fired 1204 | . 72 31 . 10 130 32 . . 25 56 . . 6 37 . 166 . 300 339 Missed 480 | . 12 12 . 7 43 9 . . 10 24 . . 3 8 . 76 . 127 149 Hits 724 | . 60 19 . 3 87 23 . . 15 32 . . 3 29 . 90 . 173 190 Melee 8 | . . . . . . . . . . 4 . . . . . 4 . . . Projectile 716 | . 60 19 . 3 87 23 . . 15 28 . . 3 29 . 86 . 173 190 Critical Strikes 27 | . 1 . . . 5 . . . . 1 . . . . . 4 . 2 14 Actively Blocked 14 | . . . . . . . . . . . . . . . . . . . 14 Part Disruptions 6 | . . . . . . . . . . . . . . . . . . 4 2 Damage Taken 12359 | . 804 266 . 39 1631 242 . . 216 420 . . 44 435 . 1705 . 2509 4048 Core 3171 | . 103 29 . 13 233 36 . . 54 109 . . 15 63 . 781 . 418 1317 Absorbed by Shields 144 | . . . . . . . . . . . . . . . . . . . 144 Redirected to Shielding 102 | . . . . . . . . . . . . . . 102 . . . . . Regen/Repaired (Parts) 16 | . . . . . . . . . . . 16 . . . . . . . . Core Remaining (%) 63 | 100 . . . 42 57 . . . . 71 . . 98 . . 15 . 63 . Volleys Fired 402 | . 51 26 . 6 80 25 . 7 5 21 5 . 22 31 . 47 . 40 36 Largest 2 | . 2 2 . 2 2 2 . 2 2 2 1 . 1 2 . 2 . 2 2 Hottest 188 | . 90 80 . 80 149 155 . 130 143 110 80 . 80 165 . 149 . 188 188 Shots Fired 683 | . 102 53 . 12 160 50 . 14 10 22 5 . 22 42 . 53 . 71 67 Gun 476 | . 48 27 . 6 159 25 . 12 10 8 . . . 26 . 28 . 65 62 Cannon 187 | . 54 26 . 6 1 25 . 2 . 4 5 . 22 16 . 22 . 4 . Launcher 16 | . . . . . . . . . . 10 . . . . . 3 . . 3 Special 4 | . . . . . . . . . . . . . . . . . . 2 2 Kinetic 137 | . 83 27 . 6 1 . . 2 . . . . . . . . . 18 . Thermal 503 | . 19 26 . 6 159 50 . 7 9 12 5 . 22 42 . 50 . 34 62 Explosive 13 | . . . . . . . . . . 10 . . . . . 3 . . . Electromagnetic 26 | . . . . . . . . 5 1 . . . . . . . . 17 3 Robot Hit Streak 33 | . 9 7 . 11 33 12 . 5 7 8 4 . 4 6 . 8 . 5 12 Robot Miss Streak 8 | . 7 3 . . 2 3 . 4 2 3 1 . 3 2 . 5 . 8 4 Penetration Max . | . . . . . . . . . . . . . . . . . . . . Secondary Targets 6 | . . . . . 1 . . . 2 . . . . . . . . 2 1 Max Gunslinging Chain 1 | . . . . . 1 . . . 1 . . . . . . . . 1 1 Shots Hit Robots 469 | . 63 31 . 11 129 40 . 5 9 14 4 . 12 27 . 30 . 46 48 Core Hits 225 | . 26 12 . 5 55 30 . 4 6 14 2 . 6 12 . 14 . 26 13 Critical Kills 1 | . 1 . . . . . . . . . . . . . . . . . . Critical Parts Destroyed . | . . . . . . . . . . . . . . . . . . . . Critical Strikes 15 | . 2 . . . 5 . . . . . . . . 4 . 3 . . 1 Burn 12 | . . . . . 5 . . . . . . . . 4 . 3 . . . Destroy 1 | . 1 . . . . . . . . . . . . . . . . . . Blast 1 | . 1 . . . . . . . . . . . . . . . . . . Impale 1 | . . . . . . . . . . . . . . . . . . . 1 Melee Attacks 7 | . . . . . . . . . . . . . . . . . . . 7 Impact . | . . . . . . . . . . . . . . . . . . . . Slashing . | . . . . . . . . . . . . . . . . . . . . Piercing 7 | . . . . . . . . . . . . . . . . . . . 7 Sneak Attacks . | . . . . . . . . . . . . . . . . . . . . Combat Hostiles . | . . . . . . . . . . . . . . . . . . . . Follow-up Attacks . | . . . . . . . . . . . . . . . . . . . . Damage Inflicted 11429 | . 1120 432 . 145 2630 1264 . 108 161 785 101 . 332 633 . 1117 . 917 1684 Guns 7075 | . 373 115 . 40 2598 617 . 108 161 99 . . . 324 . 330 . 865 1445 Cannons 2654 | . 593 317 . 103 17 449 . . . 102 101 . 332 309 . 279 . 52 . Explosions 1550 | . 150 . . . . 153 . . . 584 . . . . . 508 . . 155 Melee 84 | . . . . . . . . . . . . . . . . . . . 84 Ramming 66 | . 4 . . 2 15 45 . . . . . . . . . . . . . Kinetic 1191 | . 812 115 . 40 . . . . . . . . . . . . . 224 . Thermal 8318 | . 154 317 . 103 2615 1066 . 65 145 201 101 . 332 633 . 609 . 532 1445 Explosive 1395 | . 150 . . . . 153 . . . 584 . . . . . 508 . . . Electromagnetic 375 | . . . . . . . . 43 16 . . . . . . . . 161 155 Impact . | . . . . . . . . . . . . . . . . . . . . Slashing . | . . . . . . . . . . . . . . . . . . . . Piercing 84 | . . . . . . . . . . . . . . . . . . . 84 Highest Corruption 41 | . 2 2 2 2 . 2 12 12 12 12 . . 1 1 6 6 . 8 41 Average Corruption 5 | . 1 2 2 2 . 1 4 12 12 12 . . 1 1 2 6 . 4 13 Corruption Purged . | . . . . . . . . . . . . . . . . . . . . Corruption Blocked . | . . . . . . . . . . . . . . . . . . . . Effects 81 | . 2 5 1 2 . 3 1 12 3 10 . . . . . 15 . 9 18 Message Errors 22 | . 1 1 1 1 . 1 . 2 1 1 . . . . . 6 . 2 5 Matter Fused 11 | . . 1 . . . 2 . 2 . . . . . . . 2 . 3 1 Heat Flow Errors 13 | . . 1 . 1 . . 1 1 2 2 . . . . . 1 . . 4 Energy Discharges 5 | . . 1 . . . . . 1 . 1 . . . . . . . 1 1 Parts Rejected 1 | . . . . . . . . . . 1 . . . . . . . . . Data Loss (minor) 11 | . . . . . . . . 5 . . . . . . . 3 . 1 2 Data Loss (major) 8 | . 1 . . . . . . 1 . 1 . . . . . 2 . 2 1 Misfires 2 | . . 1 . . . . . . . 1 . . . . . . . . . Alerts 1 | . . . . . . . . . . . . . . . . . . . 1 Misdirections 4 | . . . . . . . . . . 2 . . . . . . . . 2 Weapon Failures 3 | . . . . . . . . . . 1 . . . . . 1 . . 1 Overload Shots . | . . . . . . . . . . . . . . . . . . . . Overflow Damage 217 | . . 5 . . . . . . . 61 16 . . . . 135 . . . Projectiles 37 | . . 5 . . . . . . . . 16 . . . . 16 . . . Explosions 180 | . . . . . . . . . . 61 . . . . . 119 . . . Melee . | . . . . . . . . . . . . . . . . . . . . Knockbacks 10 | . 10 . . . . . . . . . . . . . . . . . . Impact . | . . . . . . . . . . . . . . . . . . . . Kinetic 10 | . 10 . . . . . . . . . . . . . . . . . . Secondary . | . . . . . . . . . . . . . . . . . . . . Self-Inflicted Damage 109 | . 2 . . 1 . . . . . 59 . . . . . 47 . . . Shots 3 | . . . . . . . . . . 2 . . . . . 1 . . . Rammed 2 | . 1 . . 1 . . . . . . . . . . . . . . . Targets Rammed 17 | . 1 . . 1 6 9 . . . . . . . . . . . . . Kicked 15 | . . . . . 6 9 . . . . . . . . . . . . . Crushed . | . . . . . . . . . . . . . . . . . . . . Highest Temperature 436 | . 86 196 . 96 375 190 108 221 221 204 170 . 190 390 . 162 . 121 436 Average Temperature 78 | . 16 27 . 24 78 79 101 92 106 72 107 . 40 151 . 46 . 40 148 Received Heat Transfer 2085 | . 474 150 . 21 432 36 . . . 54 . . . 9 . 225 . 516 168 Effects 10 | . . . . . . . . 2 . . . . . 5 . . . . 3 Shutdowns 1 | . . . . . . . . . . . . . . 1 . . . . . Energy Bleed 2 | . . . . . . . . . . . . . . 2 . . . . . Interference 5 | . . . . . . . . 2 . . . . . 1 . . . . 2 Matter Decay 1 | . . . . . . . . . . . . . . 1 . . . . . Damage (minor) 1 | . . . . . . . . . . . . . . . . . . . 1 Siege Activations . | . . . . . . . . . . . . . . . . . . . . Martial Activations . | . . . . . . . . . . . . . . . . . . . . Shielding Activations . | . . . . . . . . . . . . . . . . . . . . Robots Disrupted . | . . . . . . . . . . . . . . . . . . . . Combat Hostiles . | . . . . . . . . . . . . . . . . . . . . Robots Corrupted . | . . . . . . . . . . . . . . . . . . . . Combat Hostiles . | . . . . . . . . . . . . . . . . . . . . Parts Fried 1 | . . . . . . . . . . . . . . . . . . . 1 Impact Corruptions . | . . . . . . . . . . . . . . . . . . . . Robots Melted 7 | . . . . . 2 . . . . . . . . 2 . 1 . 2 . Combat Hostiles 5 | . . . . . 2 . . . . . . . . . . 1 . 2 . Parts Melted 37 | . . . . . 7 5 . . . 1 1 . . 9 . 5 . 7 2 Heat Transferred 16747 | . 333 666 . 222 5602 1979 . 150 323 422 200 . 600 1900 . 1698 . 1098 1554 Parts Sabotaged . | . . . . . . . . . . . . . . . . . . . . Parts Stolen . | . . . . . . . . . . . . . . . . . . . . Parts Stripped . | . . . . . . . . . . . . . . . . . . . . Power Chain Reactions . | . . . . . . . . . . . . . . . . . . . . Alert | -11 -10 -10 -10 -9 -8 -7 -7 -7 -7 -7 -6 -6 -6 -5 -5 -5 -4 -4 -3 ------- Run | Yrd Mat Min Exi Min Mat Fac Was Fac Low Low Fac Was Fac Fac Was Fac Fac DSF Res Maximum Alert Level 1 | . . . . . 1 . . . . . . . . . . . . . . Low Security (%) 95 | 100 100 100 . 100 77 100 100 100 . . 100 100 100 100 100 100 100 100 100 Level 1 4 | . . . . . 22 . . . . . . . . . . . . . . Level 2 . | . . . . . . . . . . . . . . . . . . . . Level 3 . | . . . . . . . . . . . . . . . . . . . . Level 4 . | . . . . . . . . . . . . . . . . . . . . Level 5 . | . . . . . . . . . . . . . . . . . . . . High Security . | . . . . . . . . . . . . . . . . . . . . Max Security . | . . . . . . . . . . . . . . . . . . . . Sterilizations 1 | . . . . . . . . . . . . . . . . . . 1 . Peak Influence 301 | . 128 50 . 50 301 151 31 15 . . 12 . 60 132 31 90 7 135 158 Initial 117 | . . 3 . . . 117 31 14 . . . . . 24 31 14 7 2 75 Average 51 | . 54 11 . 7 102 56 30 1 . . 3 . 4 73 29 32 . 51 26 Influence Increases 3206 | . 320 105 . 54 754 359 . 33 70 110 17 . 82 251 . 311 3 364 373 Destroy 0b10 Robot/C 1740 | . 200 80 . 40 420 120 . . 60 100 . . 20 180 . 120 . 240 160 Destroy 0b10 Robot/NC 175 | . 25 5 . . 45 45 . 10 . . 5 . 20 15 . 5 . . . Destroy Leader 374 | . 34 20 . 10 112 68 . 2 10 10 . . 12 24 . 12 . 30 30 Allied During Kill 8 | . . . . . . . . . . . . . . . . . . 4 4 Successful Hack 40 | . . . . 4 11 5 . 5 . . 12 . . . . . 3 . . Disable Machine 150 | . 15 . . . . 90 . 15 . . . . 15 . . . . 15 . Destroy Structure 134 | . 1 . . . 1 31 . 1 . . . . . 2 . 84 . . 14 Partial Spotted 45 | . . . . . . . . . . . . . . . . 30 . . 15 Lose Combat Pursuer 540 | . 45 . . . 165 . . . . . . . 15 30 . 60 . 75 150 Influence Decreases 3191 | . 310 115 . 54 495 528 69 54 50 130 17 . 32 210 70 317 15 232 493 Entered New Map 381 | . . 7 . . . 142 59 7 . 4 . . . 26 60 7 8 1 60 Time Decay 1940 | . 280 95 . 54 386 366 10 47 50 70 17 . 32 144 10 171 7 . 201 Lost Part 790 | . 30 13 . . 109 20 . . . 56 . . . 40 . 139 . 191 192 Lost Ally 80 | . . . . . . . . . . . . . . . . . . 40 40 Squads Dispatched 27 | . 2 . . . 4 4 . 2 . . 1 . 3 2 . 3 1 2 3 Investigation 8 | . 1 . . . 1 . . . . . 1 . . 2 . 2 1 . . Extermination 10 | . . . . . . 4 . 1 . . . . 2 . . 1 . . 2 Reinforcement 9 | . 1 . . . 3 . . 1 . . . . 1 . . . . 2 1 Assault . | . . . . . . . . . . . . . . . . . . . . Garrison . | . . . . . . . . . . . . . . . . . . . . Intercept . | . . . . . . . . . . . . . . . . . . . . Searches Triggered . | . . . . . . . . . . . . . . . . . . . . Construction Impeded . | . . . . . . . . . . . . . . . . . . . . Haulers Reinforced 1 | . . . . . . . . . . . . . . . . . . . 1 Active Scanning Responses . | . . . . . . . . . . . . . . . . . . . . Cargo Convoy Interrupts 1 | . . . . . . . . . . . . . . . . 1 . . . Stealth | -11 -10 -10 -10 -9 -8 -7 -7 -7 -7 -7 -6 -6 -6 -5 -5 -5 -4 -4 -3 --------- Run | Yrd Mat Min Exi Min Mat Fac Was Fac Low Low Fac Was Fac Fac Was Fac Fac DSF Res Distress Signals 12 | . 3 . . . 7 . . . . . . . 1 . . . . . 1 Communications Jammed . | . . . . . . . . . . . . . . . . . . . . Distress Signals . | . . . . . . . . . . . . . . . . . . . . Times Spotted 227 | . 23 4 . 2 42 12 4 2 3 7 1 5 6 14 4 34 . 21 43 Peak Tracking Total 19 | . 6 2 . 2 7 2 4 1 3 4 1 5 2 5 4 18 . 6 19 Tactical Retreats 21 | . 2 . . . 7 . . . . . . . 1 1 . 3 . 3 4 Traps | -11 -10 -10 -10 -9 -8 -7 -7 -7 -7 -7 -6 -6 -6 -5 -5 -5 -4 -4 -3 ------- Run | Yrd Mat Min Exi Min Mat Fac Was Fac Low Low Fac Was Fac Fac Was Fac Fac DSF Res Traps Triggered 11 | . 3 . . . 2 2 . . . . 1 . . 3 . . . . . Indirectly . | . . . . . . . . . . . . . . . . . . . . Trap Hack Attempts . | . . . . . . . . . . . . . . . . . . . . Triggered . | . . . . . . . . . . . . . . . . . . . . Disarmed 6 | . . . . . 6 . . . . . . . . . . . . . . Reprogrammed . | . . . . . . . . . . . . . . . . . . . . Reused . | . . . . . . . . . . . . . . . . . . . . Traps Extracted . | . . . . . . . . . . . . . . . . . . . . Installed . | . . . . . . . . . . . . . . . . . . . . Triggered . | . . . . . . . . . . . . . . . . . . . . Machines | -11 -10 -10 -10 -9 -8 -7 -7 -7 -7 -7 -6 -6 -6 -5 -5 -5 -4 -4 -3 ---------- Run | Yrd Mat Min Exi Min Mat Fac Was Fac Low Low Fac Was Fac Fac Was Fac Fac DSF Res Machines Disabled 10 | . 1 . . . . 6 . 1 . . . . 1 . . . . 1 . Max in Single Turn 6 | . 1 . . . . 6 . 1 . . . . 1 . . . . 1 . Garrison Access 3 | . . . . . 1 . . . . . . . . 1 . 1 . . . Machines Repaired . | . . . . . . . . . . . . . . . . . . . . Machines Dismantled . | . . . . . . . . . . . . . . . . . . . . Machines Sabotaged . | . . . . . . . . . . . . . . . . . . . . Overloaded Fab Kills . | . . . . . . . . . . . . . . . . . . . . Hacking | -11 -10 -10 -10 -9 -8 -7 -7 -7 -7 -7 -6 -6 -6 -5 -5 -5 -4 -4 -3 --------- Run | Yrd Mat Min Exi Min Mat Fac Was Fac Low Low Fac Was Fac Fac Was Fac Fac DSF Res Machines Accessed 27 | . . . 2 2 4 3 . 2 . . 1 . 2 3 . 5 2 . 1 Terminals 16 | . . . . 2 3 2 . 1 . . . . 1 2 . 4 1 . . Fabricators . | . . . . . . . . . . . . . . . . . . . . Repair Stations 1 | . . . . . . . . . . . 1 . . . . . . . . Recycling Units 3 | . . . . . . 1 . . . . . . 1 . . . . . 1 Scanalyzers . | . . . . . . . . . . . . . . . . . . . . Garrison Access 5 | . . . . . 1 . . 1 . . . . . 1 . 1 1 . . Total Hacks 65 | . . . 2 7 12 4 . 6 . . 4 . 4 8 . 11 6 . 1 Successful 26 | . . . 2 4 6 3 . 2 . . 2 . 2 1 . 2 1 . 1 Failed 39 | . . . . 3 6 1 . 4 . . 2 . 2 7 . 9 5 . . Catastrophic 10 | . . . . . . 1 . 2 . . . . . 4 . 3 . . . Database Lockouts . | . . . . . . . . . . . . . . . . . . . . Manual 21 | . . . 1 . 5 1 . 2 . . . . . 6 . 6 . . . Terminals 46 | . . . . 7 11 3 . 4 . . . . 3 6 . 10 2 . . Fabricators . | . . . . . . . . . . . . . . . . . . . . Repair Stations 4 | . . . . . . . . . . . 4 . . . . . . . . Recycling Units 3 | . . . . . . 1 . . . . . . 1 . . . . . 1 Scanalyzers . | . . . . . . . . . . . . . . . . . . . . Garrison Access 10 | . . . . . 1 . . 2 . . . . . 2 . 1 4 . . Terminal Hacks 18 | . . . 2 4 5 2 . 2 . . . . 1 . . 1 1 . . Record 4 | . . . 1 2 . 1 . . . . . . . . . . . . . Prototype ID Bank 2 | . . . . . . 1 . 1 . . . . . . . . . . . Open DSF 2 | . . . . . . . . . . . . . . . . 1 1 . . Alert Level 3 | . . . . . 1 . . 1 . . . . 1 . . . . . . Disarm Traps 2 | . . . . . 2 . . . . . . . . . . . . . . Dispatch Records 1 | . . . . 1 . . . . . . . . . . . . . . . Transport Status 1 | . . . . . 1 . . . . . . . . . . . . . . Hauler Manifests 1 | . . . . . 1 . . . . . . . . . . . . . . Zone Layout 1 | . . . . 1 . . . . . . . . . . . . . . . Proto ID Catalog 1 | . . . 1 . . . . . . . . . . . . . . . . Fabricator Hacks . | . . . . . . . . . . . . . . . . . . . . Repair Station Hacks 2 | . . . . . . . . . . . 2 . . . . . . . . Scan Component 1 | . . . . . . . . . . . 1 . . . . . . . . Repair 1 | . . . . . . . . . . . 1 . . . . . . . . Recycling Unit Hacks 3 | . . . . . . 1 . . . . . . 1 . . . . . 1 Report Inventory 3 | . . . . . . 1 . . . . . . 1 . . . . . 1 Scanalyzer . | . . . . . . . . . . . . . . . . . . . . Garrison Access Hacks 3 | . . . . . 1 . . . . . . . . 1 . 1 . . . Seal Access 3 | . . . . . 1 . . . . . . . . 1 . 1 . . . Unauthorized Hacks . | . . . . . . . . . . . . . . . . . . . . Terminals . | . . . . . . . . . . . . . . . . . . . . Fabricators . | . . . . . . . . . . . . . . . . . . . . Repair Stations . | . . . . . . . . . . . . . . . . . . . . Recycling Units . | . . . . . . . . . . . . . . . . . . . . Scanalyzers . | . . . . . . . . . . . . . . . . . . . . Garrison Access . | . . . . . . . . . . . . . . . . . . . . Data Cores Recovered 4 | . . . . . 1 . . . . . 1 . 1 1 . . . . . Used . | . . . . . . . . . . . . . . . . . . . . Hacking Detections 17 | . . . . . 3 2 . 2 . . 1 . 1 3 . 3 2 . . Full Trace Events 6 | . . . . . . . . . . . 1 . . 2 . 2 1 . . Feedback Events 1 | . . . . . . . . . . . . . . 1 . . . . . Corruption 1 | . . . . . . . . . . . . . . 1 . . . . . Feedback Blocked . | . . . . . . . . . . . . . . . . . . . . Robot Schematics Acquired . | . . . . . . . . . . . . . . . . . . . . Robots Built . | . . . . . . . . . . . . . . . . . . . . Authchips . | . . . . . . . . . . . . . . . . . . . . Time . | . . . . . . . . . . . . . . . . . . . . Total Robot Build Rating . | . . . . . . . . . . . . . . . . . . . . Part Schematics Acquired . | . . . . . . . . . . . . . . . . . . . . Parts Built . | . . . . . . . . . . . . . . . . . . . . Authchips . | . . . . . . . . . . . . . . . . . . . . Time . | . . . . . . . . . . . . . . . . . . . . Total Part Build Rating . | . . . . . . . . . . . . . . . . . . . . Parts Repaired 1 | . . . . . . . . . . . 1 . . . . . . . . Time 26 | . . . . . . . . . . . 26 . . . . . . . . Parts Recycled . | . . . . . . . . . . . . . . . . . . . . Recycled Matter . | . . . . . . . . . . . . . . . . . . . . Retrieved Matter . | . . . . . . . . . . . . . . . . . . . . Retrieved Components . | . . . . . . . . . . . . . . . . . . . . Parts Scanalyzed . | . . . . . . . . . . . . . . . . . . . . Part Schematics Acquired . | . . . . . . . . . . . . . . . . . . . . Parts Damaged . | . . . . . . . . . . . . . . . . . . . . Bothacking | -11 -10 -10 -10 -9 -8 -7 -7 -7 -7 -7 -6 -6 -6 -5 -5 -5 -4 -4 -3 ------------ Run | Yrd Mat Min Exi Min Mat Fac Was Fac Low Low Fac Was Fac Fac Was Fac Fac DSF Res Used RIF Installer . | . . . . . . . . . . . . . . . . . . . . Robots Hacked . | . . . . . . . . . . . . . . . . . . . . Non-combat . | . . . . . . . . . . . . . . . . . . . . Combat . | . . . . . . . . . . . . . . . . . . . . Robot Hacks Applied . | . . . . . . . . . . . . . . . . . . . . Relay Couplers Released . | . . . . . . . . . . . . . . . . . . . . Fabnet Peak Effective % . | . . . . . . . . . . . . . . . . . . . . Robots Rewired . | . . . . . . . . . . . . . . . . . . . . Allies Hacked . | . . . . . . . . . . . . . . . . . . . . Hacks Repelled . | . . . . . . . . . . . . . . . . . . . . Allies | -11 -10 -10 -10 -9 -8 -7 -7 -7 -7 -7 -6 -6 -6 -5 -5 -5 -4 -4 -3 -------- Run | Yrd Mat Min Exi Min Mat Fac Was Fac Low Low Fac Was Fac Fac Was Fac Fac DSF Res Total Allies 4 | . . . . . . . . . . . . . . . . . . 2 2 Largest Group 1 | . . . . . . . . . . . . . . . . . . 1 1 Highest-Rated Group 142 | . . . . . . . . . . . . . . . . . . 142 142 Highest-Rated Ally 142 | . . . . . . . . . . . . . . . . . . 142 142 Initial Warlord ECA Mod 9 | . . . . . . . . . . . . . . . . . . . 9 Total Orders . | . . . . . . . . . . . . . . . . . . . . Ally Attacks 17 | . . . . . . . . . . . . . . . . . . 10 7 Total Damage 810 | . . . . . . . . . . . . . . . . . . 450 360 Kills 4 | . . . . . . . . . . . . . . . . . . 2 2 Allies Corrupted 1 | . . . . . . . . . . . . . . . . . . . 1 Allies Melted . | . . . . . . . . . . . . . . . . . . . . Field Lobotomies 4 | . . . . . . . . . . . . . . . . . . 2 2 Intel | -11 -10 -10 -10 -9 -8 -7 -7 -7 -7 -7 -6 -6 -6 -5 -5 -5 -4 -4 -3 ------- Run | Yrd Mat Min Exi Min Mat Fac Was Fac Low Low Fac Was Fac Fac Was Fac Fac DSF Res Active Infowar (turns) 919 | . 146 . . . 638 . . . . . . . . . . . . 2 133 A.S.S. 2 | . . . . . . . . . . . . . . . . . . 2 . Terrain 133 | . . . . . . . . . . . . . . . . . . . 133 Structural 784 | . 146 . . . 638 . . . . . . . . . . . . . . Robot Analysis Total . | . . . . . . . . . . . . . . . . . . . . Derelict Logs Recovered 3 | . . 2 . 1 . . . . . . . . . . . . . . . Drone Launches . | . . . . . . . . . . . . . . . . . . . . Drone Recoveries . | . . . . . . . . . . . . . . . . . . . . Exploration | -11 -10 -10 -10 -9 -8 -7 -7 -7 -7 -7 -6 -6 -6 -5 -5 -5 -4 -4 -3 ------------- Run | Yrd Mat Min Exi Min Mat Fac Was Fac Low Low Fac Was Fac Fac Was Fac Fac DSF Res Turns Passed 8417 | 69 790 313 229 336 1567 1867 20 369 121 174 69 28 312 349 23 482 164 484 651 Spaces Moved 9430 | 38 456 172 218 251 889 1004 74 1022 328 427 103 87 861 1034 88 786 117 468 1007 Core 91 | 5 . . . . . . . 1 . . . . . . . 7 35 . 43 Treads 280 | 33 247 . . . . . . . . . . . . . . . . . . Legs 1877 | . . 35 . . 760 927 . . . . . . . . . . 44 111 . Wheels 980 | . 209 137 218 251 129 . . . . . . . . . . . 34 . 2 Hover 4 | . . . . . . . . . . . . . . . . . 4 . . Flight 6198 | . . . . . . 77 74 1021 328 427 103 87 861 1034 88 779 . 357 962 Fastest Speed 23 | 50 90 105 105 105 86 26 26 26 26 26 23 23 25 23 23 23 85 33 34 Average Speed 66 | 145 134 129 105 105 132 162 26 29 28 26 23 24 28 23 23 27 129 53 36 Slowest Speed 260 | 160 160 260 105 105 260 260 26 150 96 96 23 25 29 29 23 104 190 190 116 Overloaded Moves . | . . . . . . . . . . . . . . . . . . . . Propulsion Burnouts . | . . . . . . . . . . . . . . . . . . . . Robots Hopped 70 | . . . . . . . . 28 . 1 . . 6 5 . 6 . . 24 Potential Cave-ins 1 | . . . . . . . . . . . . . . . . 1 . . . Cave-ins Triggered . | . . . . . . . . . . . . . . . . . . . . Exploration Rate (%) 42 | 5 69 50 61 56 57 19 77 25 53 41 3 71 25 25 69 22 3 92 21 Regions Visited 19 Branch Regions 5 Pre-discovered Areas 2 | . . 1 1 . . . . . . . . . . . . . . . . Known Exits Taken 2 | . . . . . . . . . 1 . . . . . . . 1 . . Unknown Exits Taken 10 | 1 1 1 1 1 1 . . 1 . 1 . . 1 . . 1 . . . Scrap Searched 3 | . . . . 1 . . . . 2 . . . . . . . . . . Spaces Dug 5 | . . . . . . . . 1 . . . . . . . . . . 4 Terrain Destroyed 131 | . . . . . . 31 . 1 . 52 . . . . . 43 . . 4 Melee 4 | . . . . . . . . . . . . . . . . . . . 4 Projectile 1 | . . . . . . . . 1 . . . . . . . . . . . AOE 126 | . . . . . . 31 . . . 52 . . . . . 43 . . . Terrain Rammed . | . . . . . . . . . . . . . . . . . . . . Walls Destroyed . | . . . . . . . . . . . . . . . . . . . . Machines Disabled . | . . . . . . . . . . . . . . . . . . . . Actions | -11 -10 -10 -10 -9 -8 -7 -7 -7 -7 -7 -6 -6 -6 -5 -5 -5 -4 -4 -3 --------- Run | Yrd Mat Min Exi Min Mat Fac Was Fac Low Low Fac Was Fac Fac Was Fac Fac DSF Res Total 10798 | 49 532 217 218 312 1119 1183 74 1050 340 463 143 92 900 1087 89 988 126 615 1201 Wait 536 | . 5 . . 54 77 52 1 15 2 1 25 . 2 3 . 148 1 41 109 Move 9282 | 37 455 171 217 250 888 1004 73 969 327 424 103 86 848 1024 87 773 116 467 963 Hop 62 | . . . . . . . . 24 . 1 . . 6 5 . 6 . . 20 Pick Up 83 | 3 7 3 1 1 21 16 . 7 1 1 1 1 4 3 . . . 5 8 Fast Attach 132 | 7 4 3 . . 11 12 . 6 1 3 2 1 7 8 1 4 6 38 18 Attach 80 | . 3 3 . . 13 19 . 3 1 5 4 1 . 6 . 4 2 3 13 Detach 71 | 1 3 4 . . 6 16 . 6 . 4 3 2 . 3 1 4 . 10 8 Swap 37 | . 1 2 . . 4 11 . 1 3 2 . 1 . 1 . 2 1 . 8 Drop 89 | 1 2 5 . . 13 19 . 12 . 1 . . 11 3 . . . 11 11 Fire 402 | . 51 26 . 6 80 25 . 7 5 21 5 . 22 31 . 47 . 40 36 Melee 7 | . . . . . . . . . . . . . . . . . . . 7 Ram 2 | . 1 . . 1 . . . . . . . . . . . . . . . Kick 15 | . . . . . 6 9 . . . . . . . . . . . . . Crush . | . . . . . . . . . . . . . . . . . . . . Escape Stasis . | . . . . . . . . . . . . . . . . . . . . Rewire . | . . . . . . . . . . . . . . . . . . . . Trap . | . . . . . . . . . . . . . . . . . . . . Miscellaneous . | . . . . . . . . . . . . . . . . . . . . Route ------- -11/Scrapyard -10/Materials (discovered 3 exits: [*Mat x2] / [*Min]) -10/Mines (discovered 2 exits: [*Mat] / *Exi) -10/Exiles -9/Mines -8/Materials -7/Factory -7/Waste -7/Factory (discovered 2 exits: *Fac / [*Low]) -7/Lower Caves -7/Lower Caves -6/Factory -6/Waste -6/Factory -5/Factory -5/Waste -5/Factory -4/Factory -4/DSF -3/Research History --------- Turn | Location | Event 3 | -11/Scrapyard | Discovered new exit (range 15) 70 | -11/Scrapyard | Entered Materials 315 | -10/Materials | Build established: Mutant 541 | -10/Materials | Discovered new exit (range 15) 633 | -10/Materials | Discovered new exit (range 3) 712 | -10/Materials | Discovered new exit (range 16) 860 | -10/Materials | Entered Mines 903 | -10/Mines | Discovered new exit (range 8) 980 | -10/Mines | Core integrity fell below 50% 1111 | -10/Mines | Found a damaged Exp. Sensor Array with a note attached 1113 | -10/Mines | Found Prototype Device 1161 | -10/Mines | Learned location of Zion (-6) 1168 | -10/Mines | Deemed a non-threat by the Exiles lab entrance 1169 | -10/Mines | Discovered new exit (range 5) 1173 | -10/Mines | Entered Exiles 1199 | -10/Exiles | Met 8R-AWN 1218 | -10/Exiles | Met EX-HEX 1248 | -10/Exiles | Met EX-BIN 1263 | -10/Exiles | Aligned with FarCom system 1264 | -10/Exiles | Given EX-Vault access code 1289 | -10/Exiles | Opened EX-Vault 1296 | -10/Exiles | Found Field Lobotomy Kit 1319 | -10/Exiles | Warned to stay clear of 0b10 Research branches 1348 | -10/Exiles | Met EX-DEC 1387 | -10/Exiles | Discovered new exit (range 14) 1402 | -10/Exiles | Left Exiles lab with Field Lobotomy Kit 1402 | -10/Exiles | Entered Mines 1608 | -9/Mines | Learned location of 1 exit from Lower Caves 1672 | -9/Mines | Discovered new exit (range 5) 1738 | -9/Mines | Entered Materials 1738 | -8/Materials | Evolved 4 slots: Propulsion x1, Utility x3 2025 | -8/Materials | Discovered new exit (range 12) 3077 | -8/Materials | Lost 3 parts (3n) 3305 | -8/Materials | Entered Factory 3305 | -7/Factory | Evolved 2 slots: Power x1, Propulsion x1 3370 | -7/Factory | Build established: Scavenger-Mutant 3429 | -7/Factory | Discovered new exit (range 5) 5021 | -7/Factory | Build established: Mutant 5172 | -7/Factory | Manually triggered Chute Trap 5172 | -7/Factory | Sucked down chute 5172 | -7/Factory | Entered Waste 5175 | -7/Waste | Spotted C-40 Crusher 5177 | -7/Waste | Spotted C-40 Crusher 5183 | -7/Waste | Spotted C-40 Crusher 5185 | -7/Waste | Spotted C-40 Crusher 5185 | -7/Waste | Spotted C-40 Crusher 5187 | -7/Waste | EMP discharged 5187 | -7/Waste | System corruption reached 10% 5190 | -7/Waste | Discovered new exit (range 10) 5192 | -7/Waste | Entered Factory 5406 | -7/Factory | Discovered new exit (range 5) 5529 | -7/Factory | Discovered new exit (range 11) 5561 | -7/Factory | Entered Lower Caves 5562 | -7/Lower Caves | Identified exit to Lower Caves 5649 | -7/Lower Caves | Encountered a Warlord checkpoint 5661 | -7/Lower Caves | Build established: Sprinter 5682 | -7/Lower Caves | Entered another Lower Caves area 5701 | -7/Lower Caves | Discovered new exit (range 10) 5789 | -7/Lower Caves | Lost 3 parts (2p1u) 5797 | -7/Lower Caves | Attracted the attention of an 0b10 checkpoint 5856 | -7/Lower Caves | Entered Factory 5856 | -6/Factory | Evolved 2 slots: Propulsion x1, Utility x1 5904 | -6/Factory | Repaired Broken Cesium-ion Thruster 5925 | -6/Factory | Manually triggered Chute Trap 5925 | -6/Factory | Sucked down chute 5925 | -6/Factory | Entered Waste 5935 | -6/Waste | Spotted C-40 Crusher 5936 | -6/Waste | Spotted C-40 Crusher 5939 | -6/Waste | Spotted C-40 Crusher 5942 | -6/Waste | Spotted C-40 Crusher 5945 | -6/Waste | Spotted C-40 Crusher 5946 | -6/Waste | Discovered new exit (range 13) 5953 | -6/Waste | Entered Factory 6121 | -6/Factory | Discovered new exit (range 15) 6213 | -6/Factory | Build established: Hacker-Sprinter 6265 | -6/Factory | Entered another Factory area 6265 | -5/Factory | Evolved 2 slots: Propulsion x1, Utility x1 6450 | -5/Factory | Destroyed 9 combat bots 6454 | -5/Factory | Lost 4 parts (3n1u) 6522 | -5/Factory | Discovered new exit (range 10) 6614 | -5/Factory | Sucked down chute 6614 | -5/Factory | Entered Waste 6625 | -5/Waste | Spotted C-40 Crusher 6628 | -5/Waste | Spotted C-40 Crusher 6629 | -5/Waste | EMP discharged 6630 | -5/Waste | Spotted C-40 Crusher 6632 | -5/Waste | Spotted C-40 Crusher 6632 | -5/Waste | Discovered new exit (range 14) 6637 | -5/Waste | Entered Factory 6877 | -5/Factory | Discovered new exit (range 15) 6901 | -5/Factory | Lost 3 parts (2n1w) 7113 | -5/Factory | Cargo convoy interrupted 7117 | -5/Factory | Core integrity fell below 50% 7119 | -5/Factory | Entered another Factory area 7119 | -4/Factory | Evolved 2 slots: Propulsion x1, Utility x1 7149 | -4/Factory | Lost 11 parts (1p4n4u2w) 7283 | -4/Factory | Identified exit to DSF 7283 | -4/Factory | Entered DSF 7351 | -4/DSF | Additional patrols routed to DSF 7406 | -4/DSF | Lost 5 parts (1n3u1w) 7472 | -4/DSF | Assimilated X-72 Disruptor with FLK Orb 7485 | -4/DSF | Lost 6 parts (1p2n2u1w) 7505 | -4/DSF | Assimilated H-71 Marshal with FLK Orb 7513 | -4/DSF | Discovered new exit (range 15) 7530 | -4/DSF | Lost 5 parts (1p2n1u1w) 7541 | -4/DSF | Sterilization system engaged 7561 | -4/DSF | Ambient heat levels rising (+10) 7576 | -4/DSF | Ambient heat levels rising (+10) 7591 | -4/DSF | Ambient heat levels rising (+10) 7606 | -4/DSF | Ambient heat levels rising (+10) 7621 | -4/DSF | Ambient heat levels rising (+10) 7636 | -4/DSF | Ambient heat levels rising (+10) 7651 | -4/DSF | Ambient heat levels rising (+10) 7655 | -4/DSF | Lost 4 parts (2p1n1u) 7666 | -4/DSF | Ambient heat levels rising (+10) 7681 | -4/DSF | Ambient heat levels rising (+10) 7696 | -4/DSF | Ambient heat levels rising (+10) 7701 | -4/DSF | Found Prototype Device 7701 | -4/DSF | Identified Active Sensor Suite 7711 | -4/DSF | Ambient heat levels rising (+10) 7726 | -4/DSF | Ambient heat levels rising (+10) 7741 | -4/DSF | Ambient heat levels rising (+10) 7756 | -4/DSF | Ambient heat levels rising (+10) 7767 | -4/DSF | Entered Research 7767 | -3/Research | Evolved 2 slots: Power x1, Propulsion x1 8032 | -3/Research | Build established: Scavenger-Mutant 8153 | -3/Research | System corruption reached 10% 8196 | -3/Research | Lost 8 parts (2p1n3u2w) 8296 | -3/Research | Spotted B-86 Titan 8303 | -3/Research | Assimilated H-71 Marshal with FLK Orb 8367 | -3/Research | Lost 3 parts (1p2w) 8377 | -3/Research | Assimilated B-86 Titan with FLK Orb 8398 | -3/Research | Core integrity fell below 50% 8399 | -3/Research | System corruption reached 30% 8415 | -3/Research | Core integrity fell below 20% 8418 | -3/Research | Destroyed by H-77 Assassin with Coil Gun Last Messages --------------- 08396_ Slug penetrates Wall. 08396_ Slug penetrates G-67 Veteran. 08396_ Acquired 37 matter. 08397_ Acquired Corrupted Xenon Bombardment Thruster. 08397_ Xenon Bombardment Thruster destroyed. 08400_ Integrated Corrupted Xenon Bombardment Thruster (+10). 08400_ Adv. Heat Sink destroyed. 08400_ Xenon Bombardment Thruster destroyed. 08403_ Slug penetrates Wall. 08405_ K-01 Serf collects debris. 08406_ Acquired Wheel. 08408_ Acquired 20 matter. 08409_ Wheel destroyed. 08410_ K-01 Serf collects debris. 08411_ P-80 Master resets G-67 Veteran, system corruption cleaned. 08412_ LWQJIF0MB,9YE5YL%MAU%TLF /6/TKGSAGUV 08414_ Penetrated by Slug. Map ----- +----------------------------------------------------+ | ?????????????????????????????????????????????????? | | ?????????????????????????????????????????????????? | | ?????????????????????????????????????????????????? | | ?????????????????????????????????????????????????? | | ?????????????????????????????????????????????????? | | ?????????????????????????????????????????????????? | | ?????????????????????????????????????????????????? | | ?????????????????????????????????????????????????? | | ?????????????????????????????????????????????????? | | ?????????????????????????????????????????????????? | | ?????????????????????????????????????????????????? | | ?????????????????????????????????????????????????? | | ?????????????????????????????????????????????????? | | ?????????????????????????????????????????????????? | | ?????????????????????????????????????????????????? | | ?????????????????????????????????????????????????? | | ?????????????????????????????????????????????????? | | ?????????????????????????????????????????????????? | | ?????????????????????????????????????????????????? | | ?????????????????????????????????????????????????? | | ?????????????????????????????????????????????????? | | ?????????????????????????????????????????????????? | | ???????######?#######?????????????????? ?????????? | | ???????# # #????? ??? ???###???????????? | | ???????# # ######+## A k ??????????? | | ???????# + @ " ?????#+#### | | ???????# # = ## ?????# ## | | ???????# # b #???????###??????# ## = | | ???????# |?## #????????????????# #? | | ???????######??# #???????????????## ## | | ???????######??# g g #???????????##### ##+ | | ???????# !! ?# = g p +???????????+ T | | ???????# !! ?#p* ####### #???????????# ### ### | | ???????# # #?????# #??????#????# #?#####?? | | ???????# #psg#?????# #???????????# #???????? | | ???????# k p#?????# #???#???????# #???????? | | #???############ h #?#####h#####??#????# #???????? | | ????# ] #?### gg### uu #??????## ######### | | ##### #?# ph # u #???????# ## | | # ### # =[ ######### ##= | | #% """ # % = / h ## | | % " +%! / [ ##### ## """"" | | + ### # !! #???# / """"" | | ############?# # #???# ## """" | | ?????????????# # #???# ## | | ?????????????## ####/#######???# |=## ! | | ??????????????# ####=##""####### !%###+##### | | ??????????????# %%* [[! | | ??????????????# !!!] = | | ???????????#??# =[ %= % | +----------------------------------------------------+ Best States ------------- Heat Dissipation 189 Coolant Potential 65 Energy Generation 47 Energy Capacity 750 Matter Stores 300 Matter Capacity 300 Sight Range 16 Terrain Scan Range 20 Terrain Scan Density 10 Power Amplification 30 Additional Mass Support 9 EM Shielding 3 Armor Coverage 150 Resistance: KI 20 Resistance: EM 15 Propulsion Shielding 66 Weapon Cycling 20 Evasion (%) 65 Targeting Accuracy 24 Target Analysis 12 Recoil Reduction 4 Offensive Hacking 24 Defensive Hacking 10 Authchip Count 1 Item Schematics ----------------- None Robot Schematics ------------------ None Fabricated ------------ Nothing Repaired ---------- Cesium-ion Thruster | 36% | -6/Factory | Broken Alien Tech Used ----------------- None Achievements -------------- None Challenges ------------ None Game ------ Seed CoilTowerBooster Manual? 0 Play Time 02:05:31 Cumulative 117.6 hours Start 2025.06.20 @ 21:35:52 End 2025.06.29 @ 04:59:38 Sessions 11 Manual Loads 0 Difficulty Rogue Special Mode None Game No. 223 Rogue 223 Adventurer 0 Explorer 0 Win Type - Total 0 Types 0/0/0/0/0/0/0/0/0/0 Lore% 31 Gallery% 47 Achievement% 36 Wizard Run 0 Options --------- Layout 1 ASCII 0 Keyboard 1 Movement Arrows Keybinds 0 Fullscreen 2 Font 24/Smallcaps Map View 50x35 Zoom Use 0% Tactical HUD 1 Map Filters NONE Filters NONE Steam 1 RUN: 125ddce2-2967-4cd6-98f9-7279efac3e54